Cogmind - Beta 15 @@@ ROGUE MODE // 2025.09.20 @ 15:34:37 Player: beans Result: Destroyed by 8R-AWN with 8R-AWN's Boregun Performance ------------- Evolutions (1) 500 Regions Visited (4) 800 Robots Destroyed (44) 220 Value Destroyed (925) 925 Prototype IDs (2) 40 Alien Tech Used (0) 0 Bonus (-71) -71 TOTAL SCORE: 2414 Bonus ------- Friendly Fire -71 Cogmind --------- Core Integrity 0/400 Matter 284/300 Energy 92/280 System Corruption 2% Temperature Cool (90) Movement Core (550) Ox10 Location -9/Mines Parts ------- > --- POWER (1) -------- Heavy Ion Engine > --- PROPULSION (2) --- (None) > --- UTILITY (3) ------ Large Storage Unit > --- WEAPON (3) ------- Beamcaster > --- INVENTORY (15) --- Heavy Ion Engine Light Nuclear Core Improved Heat Sink Peak State ------------ > --- POWER ------------ Heavy Ion Engine > --- PROPULSION ------- Light Treads Light Treads > --- UTILITY ---------- Large Storage Unit > --- WEAPON ----------- Light Assault Rifle Light Assault Rifle Light Assault Rifle > --- INVENTORY -------- Light Nuclear Core Light Treads Light Treads Beamcaster Grenade Launcher Rocket Launcher [Rating: 10] Favorites ----------- Power Light Ion Engine Engine Light Ion Engine Propulsion Light Treads Treads Light Treads Utility Large Storage Unit Storage Large Storage Unit Protection Light Armor Plating Weapon Light Assault Rifle Energy Gun Improved EM Shotgun Energy Cannon Beam Cannon Ballistic Gun Light Assault Rifle Launcher Grenade Launcher Build | -11 -10 -10 -9 -9 ------- Run | Yrd Mat Min Mat Min Slots Evolved 2 | . . . 2 . Power . | . . . . . Propulsion . | . . . . . Utility 1 | . . . 1 . Weapon 1 | . . . 1 . Parts Attached 23 | 5 1 1 10 6 Power 3 | 1 . . 1 1 Engine 3 | 1 . . 1 1 Core . | . . . . . Reactor . | . . . . . Propulsion 7 | 2 . . 3 2 Treads 7 | 2 . . 3 2 Leg . | . . . . . Wheel . | . . . . . Hover . | . . . . . Flight . | . . . . . Utility 3 | 1 1 . 1 . Device . | . . . . . Storage 2 | 1 1 . . . Processor . | . . . . . Hackware . | . . . . . Protection 1 | . . . 1 . Artifact . | . . . . . Weapon 10 | 1 . 1 5 3 Energy Gun 2 | . . . . 2 Energy Cannon 1 | . . 1 . . Ballistic Gun 5 | 1 . . 4 . Ballistic Cannon . | . . . . . Launcher 2 | . . . 1 1 Special Weapon . | . . . . . Impact Weapon . | . . . . . Slashing Weapon . | . . . . . Piercing Weapon . | . . . . . Special Melee Weapon . | . . . . . Unidentified Prototypes 2 | . . . 1 1 Parts Lost 17 | . 1 . 9 7 Power 1 | . 1 . . . Propulsion 7 | . . . 4 3 Utility 1 | . . . 1 . Weapon 8 | . . . 4 4 Highest Loss Streak 5 | . 1 . 3 5 To Critical Strikes 2 | . . . . 2 Average Backups 4 | . . . 5 7 Power . | . . . . 2 Propulsion . | . . . 1 . Utility . | . . . . 1 Weapon 1 | . . . 2 2 Tool/Special . | . . . . . Unused Backups 5 | . . . 2 3 Power 2 | . . . . 2 Propulsion 1 | . . . 1 . Utility 1 | . . . . 1 Weapon 1 | . . . 1 . Tool/Special . | . . . . . Average Slot Usage (%) 60 | . 65 57 64 48 Engine 1 | . 8 . . . Treads 21 | . 28 28 19 16 Storage 11 | . 14 14 11 11 Protection 2 | . . . 4 . Energy Cannon 2 | . . 12 1 . Ballistic Gun 18 | . 14 1 25 14 Launcher 2 | . . . 3 5 Peak Build Rating 10 | 5 5 5 10 10 Average Rating 5 | 2 4 4 6 6 On Entrance 3 | . 5 4 4 6 Naked Turns . | . . . . . Heaviest Build 28 | 9 24 23 28 25 Greatest Support 40 | 40 40 40 40 40 Greatest Overweight (x) 1 | . . . 1 1 Average Overweight (x) . | . . . . . Largest Inventory Capacity 15 | 8 15 15 15 15 Average Capacity 14 | 6 12 15 15 15 Most Carried 9 | 2 1 2 9 9 Average Carried 4 | . . . 5 6 Final Capacity 15 | 8 15 15 15 15 Final Carried 9 | . . 2 9 3 Class Distribution -------------------- 56% | Mutant 22% | Scavenger-Gunner 20% | Scavenger-Tank Dominant Class ---------------- Mutant | -10/Materials Mutant | -10/Mines Scavenger-Gunner | -9/Materials Mutant | -9/Mines Resources | -11 -10 -10 -9 -9 ----------- Run | Yrd Mat Min Mat Min Matter Collected 791 | 173 104 20 350 144 Remotely . | . . . . . Salvage Created 1400 | . 104 54 1216 26 Parts 91 | . 2 9 73 7 Haulers Intercepted 3 | . . . 3 . Recyclers Shooed 2 | . . 1 1 . Parts Field Recycled . | . . . . . Retrieved Matter . | . . . . . Parts Self-Destructed . | . . . . . Prevented . | . . . . . Kills | -11 -10 -10 -9 -9 ------- Run | Yrd Mat Min Mat Min Combat Hostiles Destroyed 30 | . 2 3 21 4 Guns 17 | . 2 . 14 1 Cannons 3 | . . 3 . . AOE 10 | . . . 7 3 Classes Destroyed 9 | . 1 2 6 . Worker 1 | . . . 1 . Builder 3 | . . . 3 . Tunneler 2 | . . 1 1 . Hauler 3 | . . . 3 . Recycler 4 | . . . 4 . Watcher 1 | . . . 1 . Swarmer 11 | . . 3 4 4 Grunt 18 | . 2 . 16 . Sentry 1 | . . . 1 . Best Kill Streak 7 | . 2 3 7 4 Combat Bots Only 4 | . 2 3 3 4 Max Kills in Single Turn 4 | . 1 1 3 4 Gunslinging 2 | . . . 2 . Exploded 3 | . . . 2 3 Melee . | . . . . . Uniques/NPCs Destroyed . | . . . . . Combat | -11 -10 -10 -9 -9 -------- Run | Yrd Mat Min Mat Min Hostile Shots Fired 231 | . 26 18 140 47 Missed 61 | . 2 2 45 12 Hits 170 | . 24 16 95 35 Projectile 170 | . 24 16 95 35 Critical Strikes 20 | . 2 . 4 14 Damage Taken 2264 | . 332 139 1208 585 Core 549 | . 107 36 249 157 Absorbed by Shields . | . . . . . Core Remaining (%) 71 | 100 . 42 . . Volleys Fired 137 | . 23 18 86 10 Largest 3 | . 1 1 3 3 Hottest 98 | . 20 60 70 98 Shots Fired 289 | . 23 18 231 17 Gun 242 | . 23 . 205 14 Cannon 27 | . . 18 9 . Launcher 20 | . . . 17 3 Special . | . . . . . Kinetic 234 | . 23 . 205 6 Thermal 31 | . . 18 9 4 Explosive 20 | . . . 17 3 Electromagnetic 4 | . . . . 4 Robot Hit Streak 15 | . 4 4 15 5 Robot Miss Streak 4 | . 3 2 4 2 Penetration Max . | . . . . . Secondary Targets 5 | . . . 5 . Max Gunslinging Chain 2 | . . . 2 . Shots Hit Robots 188 | . 14 11 150 13 Core Hits 91 | . 6 4 72 9 Critical Kills . | . . . . . Critical Parts Destroyed 1 | . . . 1 . Critical Strikes 1 | . . . 1 . Destroy 1 | . . . 1 . Melee Attacks . | . . . . . Impact . | . . . . . Slashing . | . . . . . Piercing . | . . . . . Sneak Attacks . | . . . . . Combat Hostiles . | . . . . . Follow-up Attacks . | . . . . . Damage Inflicted 2670 | . 117 194 2098 261 Guns 1297 | . 117 . 1129 51 Cannons 352 | . . 194 158 . Explosions 962 | . . . 811 151 Melee . | . . . . . Ramming 59 | . . . . 59 Kinetic 1289 | . 117 . 1129 43 Thermal 365 | . . 194 158 13 Explosive 955 | . . . 811 144 Electromagnetic 2 | . . . . 2 Impact . | . . . . . Slashing . | . . . . . Piercing . | . . . . . Highest Corruption 2 | . 2 2 2 2 Average Corruption 2 | . 2 2 2 2 Corruption Purged . | . . . . . Corruption Blocked . | . . . . . Effects 18 | . . 2 9 7 Message Errors 3 | . . 1 . 2 Matter Fused 3 | . . 1 1 1 Heat Flow Errors 4 | . . . 2 2 Energy Discharges 2 | . . . 1 1 Data Loss (minor) 4 | . . . 3 1 Weapon Failures 2 | . . . 2 . Overload Shots . | . . . . . Overflow Damage 35 | . . . 25 10 Projectiles . | . . . . . Explosions 35 | . . . 25 10 Melee . | . . . . . Knockbacks . | . . . . . Impact . | . . . . . Kinetic . | . . . . . Secondary . | . . . . . Self-Inflicted Damage 60 | . . . 60 . Shots 4 | . . . 4 . Rammed 27 | . . . . 27 Targets Rammed 27 | . . . . 27 Kicked . | . . . . . Crushed . | . . . . . Highest Temperature 189 | . 27 82 189 157 Average Temperature 21 | . 8 34 16 44 Received Heat Transfer 822 | . 219 . 603 . Siege Activations . | . . . . . Martial Activations . | . . . . . Shielding Activations . | . . . . . Robots Disrupted . | . . . . . Combat Hostiles . | . . . . . Robots Corrupted . | . . . . . Combat Hostiles . | . . . . . Parts Fried . | . . . . . Impact Corruptions . | . . . . . Robots Melted . | . . . . . Combat Hostiles . | . . . . . Parts Melted 2 | . . 1 1 . Heat Transferred 779 | . . 407 333 39 Parts Sabotaged . | . . . . . Parts Stolen . | . . . . . Parts Stripped . | . . . . . Power Chain Reactions 1 | . . . . 1 Alert | -11 -10 -10 -9 -9 ------- Run | Yrd Mat Min Mat Min Maximum Alert Level 1 | . . . 1 . Low Security (%) 92 | 100 100 100 85 100 Level 1 7 | . . . 14 . Level 2 . | . . . . . Level 3 . | . . . . . Level 4 . | . . . . . Level 5 . | . . . . . High Security . | . . . . . Max Security . | . . . . . Peak Influence 326 | . 50 60 326 139 Initial 108 | . . 3 19 108 Average 80 | . 11 5 122 86 Influence Increases 952 | . 50 75 698 129 Destroy 0b10 Robot/C 600 | . 40 60 420 80 Destroy 0b10 Robot/NC 70 | . . 5 65 . Destroy Leader 108 | . 10 10 78 10 Disable Machine 45 | . . . 30 15 Destroy Structure 99 | . . . 75 24 Lose Combat Pursuer 30 | . . . 30 . Influence Decreases 935 | . 40 35 470 390 Entered New Map 208 | . . 7 31 170 Time Decay 582 | . 40 28 364 150 Lost Part 145 | . . . 75 70 Squads Dispatched 4 | . 1 1 2 . Investigation 1 | . . 1 . . Extermination . | . . . . . Reinforcement 3 | . 1 . 2 . Assault . | . . . . . Garrison . | . . . . . Intercept . | . . . . . Searches Triggered . | . . . . . Construction Impeded . | . . . . . Haulers Reinforced . | . . . . . Active Scanning Responses . | . . . . . Cargo Convoy Interrupts . | . . . . . Stealth | -11 -10 -10 -9 -9 --------- Run | Yrd Mat Min Mat Min Distress Signals 3 | . . . 3 . Communications Jammed . | . . . . . Distress Signals . | . . . . . Times Spotted 49 | . 3 3 38 5 Peak Tracking Total 5 | . 2 3 5 4 Tactical Retreats 2 | . . . 2 . Traps | -11 -10 -10 -9 -9 ------- Run | Yrd Mat Min Mat Min Traps Triggered 2 | . 1 . 1 . Indirectly . | . . . . . Trap Hack Attempts . | . . . . . Triggered . | . . . . . Disarmed . | . . . . . Reprogrammed . | . . . . . Reused . | . . . . . Traps Extracted . | . . . . . Installed . | . . . . . Triggered . | . . . . . Machines | -11 -10 -10 -9 -9 ---------- Run | Yrd Mat Min Mat Min Machines Disabled 4 | . . . 3 1 Max in Single Turn 1 | . . . 1 1 Machines Repaired . | . . . . . Machines Dismantled . | . . . . . Machines Sabotaged . | . . . . . Overloaded Fab Kills . | . . . . . Hacking | -11 -10 -10 -9 -9 --------- Run | Yrd Mat Min Mat Min Machines Accessed 1 | . . 1 . . Terminals . | . . . . . Fabricators . | . . . . . Repair Stations . | . . . . . Recycling Units . | . . . . . Scanalyzers . | . . . . . Garrison Access . | . . . . . Total Hacks 1 | . . 1 . . Successful 1 | . . 1 . . Failed . | . . . . . Catastrophic . | . . . . . Database Lockouts . | . . . . . Manual . | . . . . . Terminals . | . . . . . Fabricators . | . . . . . Repair Stations . | . . . . . Recycling Units . | . . . . . Scanalyzers . | . . . . . Garrison Access . | . . . . . Terminal Hacks 1 | . . 1 . . Open Door 1 | . . 1 . . Fabricator Hacks . | . . . . . Repair Station Hacks . | . . . . . Recycling Unit Hacks . | . . . . . Scanalyzer . | . . . . . Garrison Access Hacks . | . . . . . Unauthorized Hacks . | . . . . . Terminals . | . . . . . Fabricators . | . . . . . Repair Stations . | . . . . . Recycling Units . | . . . . . Scanalyzers . | . . . . . Garrison Access . | . . . . . Data Cores Recovered . | . . . . . Used . | . . . . . Hacking Detections . | . . . . . Full Trace Events . | . . . . . Feedback Events . | . . . . . Feedback Blocked . | . . . . . Robot Schematics Acquired . | . . . . . Robots Built . | . . . . . Authchips . | . . . . . Time . | . . . . . Total Robot Build Rating . | . . . . . Part Schematics Acquired . | . . . . . Parts Built . | . . . . . Authchips . | . . . . . Time . | . . . . . Total Part Build Rating . | . . . . . Parts Repaired . | . . . . . Time . | . . . . . Parts Recycled . | . . . . . Recycled Matter . | . . . . . Retrieved Matter . | . . . . . Retrieved Components . | . . . . . Parts Scanalyzed . | . . . . . Part Schematics Acquired . | . . . . . Parts Damaged . | . . . . . Bothacking | -11 -10 -10 -9 -9 ------------ Run | Yrd Mat Min Mat Min Used RIF Installer . | . . . . . Robots Hacked . | . . . . . Non-combat . | . . . . . Combat . | . . . . . Robot Hacks Applied . | . . . . . Relay Couplers Released . | . . . . . Fabnet Peak Effective % . | . . . . . Robots Rewired . | . . . . . Allies Hacked . | . . . . . Hacks Repelled . | . . . . . Allies | -11 -10 -10 -9 -9 -------- Run | Yrd Mat Min Mat Min Total Allies . | . . . . . Largest Group . | . . . . . Highest-Rated Group . | . . . . . Highest-Rated Ally . | . . . . . Total Orders . | . . . . . Ally Attacks . | . . . . . Total Damage . | . . . . . Kills . | . . . . . Allies Corrupted . | . . . . . Allies Melted . | . . . . . Intel | -11 -10 -10 -9 -9 ------- Run | Yrd Mat Min Mat Min Active Infowar (turns) . | . . . . . Robot Analysis Total . | . . . . . Derelict Logs Recovered 3 | . . 3 . . Drone Launches . | . . . . . Drone Recoveries . | . . . . . Exploration | -11 -10 -10 -9 -9 ------------- Run | Yrd Mat Min Mat Min Turns Passed 1850 | 79 223 278 953 317 Spaces Moved 848 | 67 104 147 405 125 Core 34 | 34 . . . . Treads 814 | 33 104 147 405 125 Legs . | . . . . . Wheels . | . . . . . Hover . | . . . . . Flight . | . . . . . Fastest Speed 50 | 50 160 160 160 160 Average Speed 166 | 104 160 160 172 193 Slowest Speed 240 | 160 160 160 240 240 Overloaded Moves . | . . . . . Propulsion Burnouts . | . . . . . Robots Hopped . | . . . . . Potential Cave-ins . | . . . . . Cave-ins Triggered . | . . . . . Exploration Rate (%) 32 | 4 26 43 47 42 Regions Visited 4 Branch Regions 2 Pre-discovered Areas 1 | . . 1 . . Known Exits Taken 1 | . . . 1 . Unknown Exits Taken 3 | 1 1 1 . . Scrap Searched 1 | . . . . 1 Spaces Dug . | . . . . . Terrain Destroyed 135 | . . . 86 49 Melee . | . . . . . Projectile 1 | . . . . 1 AOE 134 | . . . 86 48 Terrain Rammed . | . . . . . Walls Destroyed . | . . . . . Machines Disabled . | . . . . . Actions | -11 -10 -10 -9 -9 --------- Run | Yrd Mat Min Mat Min Total 1085 | 76 142 173 524 170 Wait 18 | . 13 2 1 2 Move 844 | 66 103 146 404 125 Hop . | . . . . . Pick Up 29 | 5 1 4 19 . Fast Attach . | . . . . . Attach 22 | 5 . 1 10 6 Detach . | . . . . . Swap 2 | . 1 . 1 . Drop 6 | . 1 2 3 . Fire 137 | . 23 18 86 10 Melee . | . . . . . Ram . | . . . . . Kick . | . . . . . Crush 27 | . . . . 27 Escape Stasis . | . . . . . Rewire . | . . . . . Trap . | . . . . . Miscellaneous . | . . . . . Route ------- -11/Scrapyard -10/Materials -10/Mines (discovered 2 exits: [*Mat x2]) -9/Materials (discovered 4 exits: *Mat x3 / *Min) -9/Mines History --------- Turn | Location | Event 5 | -11/Scrapyard | Discovered new exit (range 14) 80 | -11/Scrapyard | Entered Materials 248 | -10/Materials | Discovered new exit (range 15) 303 | -10/Materials | Entered Mines 304 | -10/Mines | Build established: Mutant 305 | -10/Mines | Discovered new exit (range 8) 308 | -10/Mines | Learned 8 Materials zone layouts 437 | -10/Mines | Met a Derelict shopkeep closing up shop 529 | -10/Mines | Discovered new exit (range 10) 543 | -10/Mines | Core integrity fell below 50% 581 | -10/Mines | Entered Materials 581 | -9/Materials | Evolved 2 slots: Utility x1, Weapon x1 582 | -9/Materials | Identified exit to Materials 582 | -9/Materials | Identified exit to Mines 1043 | -9/Materials | Build established: Scavenger-Gunner 1160 | -9/Materials | Core integrity fell below 50% 1247 | -9/Materials | Discovered exit to Materials (range 16) 1458 | -9/Materials | Build established: Scavenger-Tank 1534 | -9/Materials | Entered Mines 1563 | -9/Mines | Lost 3 parts (1n1u1w) 1705 | -9/Mines | Assembled infested the area 1715 | -9/Mines | Found a hidden stash of uninstalled traps 1775 | -9/Mines | Met 8R-AWN 1784 | -9/Mines | Attacked by 8R-AWN 1820 | -9/Mines | Build established: Mutant 1832 | -9/Mines | Core integrity fell below 20% 1851 | -9/Mines | Destroyed by 8R-AWN with 8R-AWN's Boregun Last Messages --------------- Penetrated by HV Slug. HV Slug penetrates Wall. Slammed into 8R-AWN. Penetrated by HV Slug. Critical hit (Destroy). Lgt. Treads destroyed. HV Slug penetrates Wall. Penetrated by HV Slug. Critical hit (Destroy). Lgt. Treads destroyed. HV Slug penetrates Wall. Acquired 4 matter. K-01 Serf collects debris. Wall collapses. Penetrated by HV Slug. HV Slug penetrates Wall. Penetrated by HV Slug. HV Slug penetrates Wall. R-06 Scavenger collects Terrain Scanner. Penetrated by HV Slug. Map ----- +----------------------------------------------------+ | | | | | | | | | | | | | | | | | | | | | | | | | ?????????????????????????????????????????????????? | | ?????????????????????????????###?????????????????? | | ???????????????????????###### ##????????????????? | | ??????????????????????## &&& #????????????????? | | ??????????????????????# & & #?????????????????? | | ??????????????????????# #####?????????????????? | | ????????????####??????#### #?????############????? | | ????????????# #?####?## #?????# #????? | | ???????????# ;#; ?#; ####### #????? | | ??????????? #; """ #????? | | ????????????# #;######## """ #????? | | ???????????????# ;##?????# "" #????? | | ????????????????# %%####### % #????? | | ???????????????##% @%%## %## #????? | | ??????????# ! r g%%# %% # ### ####????? | | ??????????; =[ !% ### %%#% # # #######?? | | ???????????=%####=???#;# % # #### | | ???????????????????? ;; t ## ## ####?? | | ???????????????????#### ## # # ## #? #????? | | ??????????????????????##?##; #? #????? | | ??????????????????????????# # ##" #? #????? | | ??????????????????????????# #### # ##?# ## #????? | | ??????????????????????????###??#####??# ##???? | | ??????????????????????????????????????# ##??? | | ??????????????????????????????????????# #??? | | ?????????????????????????????????????## #??? | | ????????????????????????????????????## ##??? | | ???????????????????????????????????## ##???? | | ?????????????????????????????????### ##????? | | ????????????????????????????????## ##?????? | | ??????????????????????????###?### #??????? | | ?????????????????????????## ## #??????? | | ????????????????????????## ##?????? | | ????????????????????????# ##????? | | ????????????????????????# ### #### # | | ????????????????????###??# ### # | | ???????????????????## ##?# # | | ???????????????????# ### ##### | +----------------------------------------------------+ Best States ------------- Heat Dissipation 28 Energy Generation 14 Energy Capacity 280 Matter Stores 300 Matter Capacity 300 Sight Range 16 Terrain Scan Density 10 Armor Coverage 150 Evasion (%) 50 Recoil Reduction 2 Item Schematics ----------------- None Robot Schematics ------------------ None Fabricated ------------ Nothing Repaired ---------- Nothing Alien Tech Used ----------------- None Achievements -------------- None Challenges ------------ None Game ------ Seed StormPoweredStripper Manual? 0 Play Time 00:11:56 Cumulative 151.0 hours Start 2025.09.20 @ 15:24:22 End 2025.09.20 @ 15:34:37 Sessions 1 Manual Loads 0 Difficulty Rogue Special Mode None Game No. 490 Rogue 490 Adventurer 0 Explorer 0 Win Type - Total 0 Types 0/0/0/0/0/0/0/0/0/0 Lore% 54 Gallery% 52 Achievement% 42 Wizard Run 0 Options --------- Layout 1 ASCII 0 Keyboard 0 Movement Mouse Keybinds 0 Fullscreen 2 Font 24/Smallcaps Map View 50x35 Zoom Use 0% Tactical HUD 0 Map Filters NONE Filters NONE Steam 1 RUN: 740482bc-49eb-48ae-83bf-50bb61ef4c1d